fUSD/lending_fUSD_20240628
["ID","MTS","AMOUNT","RATE_DAILY","PERIOD"]
[330530470,1719558769344,-4357.71,0.00020821,2]
[330530471,1719558769355,-1481.62,0.00020821,2]
[330530472,1719558769365,-2501.73,0.00020821,2]
[330530473,1719558769374,-602.93,0.00020821,2]
[330530474,1719558769383,-500.0,0.00020821,2]
[330530475,1719558769394,-500.0,0.00020821,2]
[330530476,1719558769406,-18452.9,0.00020821,2]
[330530477,1719558769415,-593.29,0.00020821,2]
[330530478,1719558769424,-1580.53,0.00020821,2]
[330530479,1719558769433,-500.0,0.00020821,2]
[330530480,1719558769443,-3842.24,0.00020821,2]
[330530481,1719558769453,-882.06,0.00020821,2]
[330530482,1719558769464,-348.02158627,0.00020821,2]
[330530483,1719558769474,-22571.91,0.00020821,2]
[330530484,1719558769483,-752.88,0.00020821,2]
[330530485,1719558769492,-3435.9,0.00020821,2]
[330530486,1719558769502,-500.0,0.00020821,2]
[330530487,1719558769511,-500.0,0.00020821,2]
[330530488,1719558769520,-500.0,0.00020821,2]
[330530489,1719558769530,-5321.73,0.00020821,2]
[330530490,1719558769540,-822.36,0.00020821,2]
[330530491,1719558769550,-500.0,0.00020821,2]
[330530492,1719558769559,-500.0,0.00020821,2]
[330530493,1719558769568,-500.0,0.00020821,2]
[330530494,1719558769578,-6170.08,0.00020821,2]
[330530495,1719558769587,-2775.78,0.00020821,2]
[330530496,1719558769596,-500.0,0.00020821,2]
[330530497,1719558769606,-886.61,0.00020821,2]
[330530498,1719558769615,-5607.81,0.00020821,2]
[330530499,1719558769625,-872.26,0.00020821,2]
[330530500,1719558769634,-1186.29,0.00020821,2]
[330530501,1719558769644,-500.0,0.00020821,2]
[330530502,1719558769653,-500.0,0.00020821,2]
[330530503,1719558769662,-569.29,0.00020821,2]
[330530504,1719558769671,-500.0,0.00020821,2]
[330530505,1719558769680,-500.0,0.00020821,2]
[330530506,1719558769690,-4543.74,0.00020821,2]
[330530507,1719558769699,-1249.44,0.00020821,2]
[330530508,1719558769713,-1376.59,0.00020821,2]
[330530509,1719558769726,-903.74,0.00020821,2]
[330530510,1719558769736,-500.0,0.00020821,2]
[330530511,1719558769746,-7628.99,0.00020821,2]
[330530512,1719558769757,-38914.23,0.00020821,2]
[330530513,1719558769767,-17630.11,0.00020821,2]
[330530514,1719558769777,-2500.0,0.00020821,3]
[330530515,1719558769787,-3717.26,0.00020821,2]
[330530516,1719558769797,-500.0,0.00020821,2]
[330530517,1719558769806,-713.1,0.00020821,2]
[330530518,1719558769816,-500.0,0.00020821,2]
[330530519,1719558769825,-3362.22,0.00020821,2]
[330530520,1719558769834,-1142.69,0.00020821,2]
[330530521,1719558769844,-1661.39,0.00020821,2]
[330530522,1719558769852,-598.98,0.00020821,2]
[330530523,1719558769862,-1709.03,0.00020821,2]
[330530524,1719558769871,-600.42,0.00020821,2]
[330530525,1719558769883,-960.62,0.00020821,2]
[330530526,1719558769892,-5549.99,0.00020821,2]
[330530527,1719558769901,-500.0,0.00020821,2]
[330530528,1719558769911,-2313.76,0.00020821,2]
[330530529,1719558769920,-500.0,0.00020821,2]
[330530530,1719558769930,-500.0,0.00020821,2]
[330530531,1719558769939,-4005.8,0.00020821,2]
[330530532,1719558769948,-500.0,0.00020821,2]
[330530533,1719558769960,-500.0,0.00020821,2]
[330530534,1719558769970,-10581.61,0.00020821,2]
[330530535,1719558769979,-1474.25,0.00020821,2]
[330530536,1719558769989,-1561.16,0.00020821,2]
[330530537,1719558769998,-2302.94,0.00020821,2]
[330530538,1719558770008,-1795.69,0.00020821,2]
[330530539,1719558770018,-500.0,0.00020821,2]
[330530540,1719558770027,-2674.14,0.00020821,2]
[330530541,1719558770037,-6603.51,0.00020821,2]
[330530542,1719558770046,-510.71,0.00020821,2]
[330530543,1719558770056,-1854.88,0.00020821,2]
[330530544,1719558770065,-500.0,0.00020821,2]
[330530545,1719558770075,-4497.7,0.00020821,2]
[330530546,1719558770084,-994.78,0.00020821,2]
[330530547,1719558770093,-4090.43,0.00020821,2]
[330530548,1719558770104,-2355.57,0.00020821,2]
[330530549,1719558770118,-681.44,0.00020821,2]
[330530550,1719558770127,-2778.54,0.00020821,2]
[330530551,1719558770137,-2225.47,0.00020821,2]
[330530552,1719558770146,-500.0,0.00020821,2]
[330530553,1719558770158,-1541.61,0.00020821,2]
[330530554,1719558770168,-500.0,0.00020821,2]
[330530555,1719558770177,-772.04,0.00020821,2]
[330530556,1719558770187,-2967.11,0.00020821,2]
[330530557,1719558770198,-500.0,0.00020821,2]
[330530558,1719558770211,-2521.36,0.00020821,2]
[330530559,1719558770220,-1281.95,0.00020821,2]
[330530560,1719558770228,-676.28,0.00020821,2]
[330530561,1719558770237,-1061.24,0.00020821,2]
[330530562,1719558770246,-500.0,0.00020821,2]
[330530563,1719558770256,-2830.72,0.00020821,2]
[330530564,1719558770265,-2120.89,0.00020821,2]
[330530565,1719558770275,-5989.98,0.00020821,2]
[330530566,1719558770285,-3174.64,0.00020821,2]
[330530567,1719558770294,-526.55,0.00020821,2]
[330530568,1719558770303,-9688.19,0.00020821,2]
[330530569,1719558770313,-500.0,0.00020821,2]
[330530570,1719558770323,-840.68,0.00020821,2]
[330530571,1719558770332,-1247.68,0.00020821,2]
[330530572,1719558770341,-3043.55,0.00020821,2]
[330530573,1719558770351,-500.0,0.00020821,2]
[330530574,1719558770360,-761.47,0.00020821,2]
[330530575,1719558770370,-500.0,0.00020821,2]
[330530576,1719558770379,-886.38,0.00020821,2]
[330530577,1719558770390,-500.0,0.00020821,2]
[330530578,1719558770400,-500.0,0.00020821,2]
[330530579,1719558770410,-500.0,0.00020821,2]
[330530580,1719558770419,-500.0,0.00020821,2]
[330530581,1719558770429,-582.31,0.00020821,2]
[330530582,1719558770438,-3675.64,0.00020821,2]
[330530583,1719558770447,-500.0,0.00020821,2]
[330530584,1719558770459,-500.0,0.00020821,2]
[330530585,1719558770469,-8732.17,0.00020821,2]
[330530586,1719558770478,-1059.73,0.00020821,2]
[330530587,1719558770488,-500.0,0.00020821,2]
[330530588,1719558770497,-500.0,0.00020821,2]
[330530589,1719558770506,-1356.22,0.00020821,2]
[330530590,1719558770515,-3225.76,0.00020821,2]
[330530591,1719558770525,-7069.38,0.00020821,2]
[330530592,1719558770534,-1492.29,0.00020821,2]
[330530593,1719558770544,-1221.84,0.00020821,2]
[330530594,1719558770553,-5982.08,0.00020821,2]
[330530595,1719558770563,-3165.32,0.00020821,2]
[330530596,1719558770573,-512.92853851,0.00020821,2]
[330530597,1719558770583,-664.71,0.00020821,2]
[330530598,1719558770594,-783.9,0.00020821,2]
[330530599,1719558770604,-500.0,0.00020821,2]
[330530600,1719558770613,-511.36,0.00020821,2]
[330530601,1719558770623,-668.7,0.00020821,2]
[330530602,1719558770633,-15314.84,0.00020821,2]
[330530603,1719558770642,-1406.94,0.00020821,2]
[330530604,1719558770653,-4518.02,0.00020821,2]
[330530605,1719558770663,-3761.95,0.00020821,2]
[330530606,1719558770671,-1858.57,0.00020821,2]
[330530607,1719558770681,-1698.8,0.00020821,2]
[330530608,1719558770690,-509.81,0.00020821,2]
[330530609,1719558770699,-806.26,0.00020821,2]
[330530610,1719558770709,-500.0,0.00020821,2]
[330530611,1719558770719,-19701.35,0.00020821,2]
[330530612,1719558770728,-500.0,0.00020821,2]
[330530613,1719558770737,-1581.02,0.00020821,2]
[330530614,1719558770747,-500.0,0.00020821,2]
[330530615,1719558770756,-6118.98,0.00020821,2]
[330530616,1719558770765,-18198.63,0.00020821,2]
[330530617,1719558770898,-19034.38,0.00020821,2]
[330530618,1719558770907,-6822.38,0.00020821,2]
[330530619,1719558770916,-28717.77,0.00020821,2]
[330530620,1719558770924,-43374.57,0.00020821,2]
[330530621,1719558770934,-12046.15,0.00020821,2]
[330530622,1719558770943,-500.0,0.00020821,2]
[330530623,1719558770952,-901.99,0.00020821,2]
[330530624,1719558770963,-500.0,0.00020821,2]
[330530625,1719558770972,-1866.33,0.00020821,2]
[330530626,1719558770981,-500.0,0.00020821,2]
[330530627,1719558770990,-268.42757821,0.00020821,2]
[330530628,1719558770999,-1979.03,0.00020821,2]
[330530629,1719558771009,-1122.13,0.00020821,2]
[330530630,1719558771018,-2880.3,0.00020821,2]
[330530631,1719558771028,-967.6,0.00020821,2]
[330530632,1719558771038,-13219.7,0.00020821,2]
[330530633,1719558771047,-2957.08,0.00020821,2]
[330530634,1719558771057,-1996.34,0.00020821,2]
[330530635,1719558771067,-1470.43,0.00020821,2]
[330530636,1719558771077,-930.62,0.00020821,2]
[330530637,1719558771086,-500.0,0.00020821,2]
[330530638,1719558771096,-500.0,0.00020821,2]
[330530639,1719558771106,-837.01,0.00020821,2]
[330530640,1719558771120,-725.41,0.00020821,2]
[330530641,1719558771130,-500.0,0.00020821,2]
[330530642,1719558771139,-1036.95,0.00020821,2]
[330530643,1719558771148,-508.31,0.00020821,2]
[330530644,1719558771160,-500.0,0.00020821,2]
[330530645,1719558771171,-500.0,0.00020821,2]
[330530646,1719558771180,-614.05,0.00020821,2]
[330530647,1719558771191,-695.05,0.00020821,2]
[330530648,1719558771201,-11131.72,0.00020821,2]
[330530649,1719558771212,-2438.96,0.00020821,2]
[330530650,1719558771222,-4107.36,0.00020821,2]
[330530651,1719558771232,-8501.39,0.00020821,2]
[330530652,1719558771242,-500.0,0.00020821,2]
[330530653,1719558771251,-1198.32,0.00020821,2]
[330530654,1719558771260,-3504.83,0.00020821,2]
[330530655,1719558771270,-500.0,0.00020821,2]
[330530656,1719558771280,-1116.82,0.00020821,2]
[330530657,1719558771289,-3576.98,0.00020821,2]
[330530658,1719558771299,-7408.97,0.00020821,2]
[330530659,1719558771308,-500.0,0.00020821,2]
[330530660,1719558771317,-500.0,0.00020821,2]
[330530661,1719558771327,-500.0,0.00020821,2]
[330530662,1719558771336,-500.0,0.00020821,2]
[330530663,1719558771346,-10459.3,0.00020821,2]
[330530664,1719558771355,-1129.7,0.00020821,2]
[330530665,1719558771365,-500.0,0.00020821,2]
[330530666,1719558771374,-3893.33,0.00020821,2]
[330530667,1719558771384,-970.09,0.00020821,2]
[330530668,1719558771393,-2771.23,0.00020821,2]
[330530669,1719558771403,-2837.24,0.00020821,2]
[330530670,1719558771412,-1613.0,0.00020859,2]
[330530671,1719558771422,-500.0,0.000209,2]
[330530672,1719558771431,-504.33,0.000209,2]
[330530673,1719558771440,-500.0,0.000209,2]
[330530674,1719558771449,-500.0,0.000209,2]
[330530675,1719558771460,-500.0,0.000209,2]
[330530676,1719558771468,-500.0,0.000209,2]
[330530677,1719558771477,-500.0,0.000209,2]
[330530678,1719558771487,-500.0,0.000209,2]
[330530679,1719558771496,-500.0,0.000209,2]
[330530680,1719558771505,-500.0,0.000209,2]
[330530681,1719558771514,-500.0,0.000209,2]
[330530682,1719558771523,-500.0,0.000209,2]
[330530683,1719558771532,-500.0,0.000209,2]
[330530684,1719558771542,-500.0,0.000209,2]
[330530685,1719558771551,-500.0,0.000209,2]
[330530686,1719558771560,-500.0,0.000209,2]
[330530687,1719558771569,-500.0,0.000209,2]
[330530688,1719558771578,-500.0,0.000209,2]
[330530689,1719558771588,-500.0,0.000209,2]
[330530690,1719558771597,-500.0,0.000209,2]
[330530691,1719558771607,-500.0,0.000209,2]
[330530692,1719558771616,-500.0,0.000209,2]
[330530693,1719558771625,-500.0,0.000209,2]
[330530694,1719558771634,-500.0,0.000209,2]
[330530695,1719558771643,-500.0,0.000209,2]
[330530696,1719558771653,-500.0,0.000209,2]
[330530697,1719558771662,-457.97,0.000209,2]
[330530698,1719558771672,-500.0,0.000209,2]
[330530699,1719558771681,-500.0,0.000209,2]
[330530700,1719558771690,-500.0,0.000209,2]
[330530701,1719558771699,-500.0,0.000209,2]
[330530702,1719558771707,-500.0,0.000209,2]
[330530703,1719558771716,-500.0,0.000209,2]
[330530704,1719558771726,-500.0,0.000209,2]
[330530705,1719558771735,-500.0,0.000209,2]
[330530706,1719558771744,-518.86,0.000209,2]
[330530707,1719558771755,-500.0,0.000209,2]
[330530708,1719558771764,-500.0,0.000209,2]
[330530709,1719558771773,-500.0,0.000209,2]
[330530710,1719558771782,-500.0,0.000209,2]
[330530711,1719558771792,-500.0,0.000209,2]
[330530712,1719558771801,-500.0,0.000209,2]
[330530713,1719558771812,-500.0,0.000209,2]
[330530714,1719558771820,-500.0,0.000209,2]
[330530715,1719558771830,-500.0,0.000209,2]
[330530716,1719558771840,-500.0,0.000209,2]
[330530717,1719558771850,-500.0,0.000209,2]
[330530718,1719558771859,-500.0,0.000209,2]
[330530719,1719558771868,-500.0,0.000209,2]
[330530720,1719558771878,-500.0,0.000209,2]
[330530721,1719558771887,-500.0,0.000209,2]
[330530722,1719558771897,-500.0,0.000209,2]
[330530723,1719558771906,-500.0,0.000209,2]
[330530724,1719558771916,-500.0,0.000209,2]
[330530725,1719558771925,-500.0,0.000209,2]
[330530726,1719558771936,-500.0,0.000209,2]
[330530727,1719558771946,-500.0,0.000209,2]
[330530728,1719558771956,-500.0,0.000209,2]
[330530729,1719558771967,-500.0,0.000209,2]
[330530730,1719558771976,-500.0,0.000209,2]
[330530731,1719558771986,-500.0,0.000209,2]
[330530732,1719558771995,-500.0,0.000209,2]
[330530733,1719558772003,-500.0,0.000209,2]
[330530734,1719558772013,-500.0,0.000209,2]
[330530735,1719558772022,-500.0,0.000209,2]
[330530736,1719558772032,-500.0,0.000209,2]
[330530737,1719558772041,-500.0,0.000209,2]
[330530738,1719558772050,-500.0,0.000209,2]
[330530739,1719558772059,-500.0,0.000209,2]
[330530740,1719558772068,-500.0,0.000209,2]
[330530741,1719558772077,-500.0,0.000209,2]
[330530742,1719558772087,-500.0,0.000209,2]
[330530743,1719558772096,-500.0,0.000209,2]
[330530744,1719558772105,-500.0,0.000209,2]
[330530745,1719558772117,-500.0,0.000209,2]
[330530746,1719558772127,-500.0,0.000209,2]
[330530747,1719558772136,-500.0,0.000209,2]
[330530748,1719558772145,-500.0,0.000209,2]
[330530749,1719558772155,-500.0,0.000209,2]
[330530750,1719558772164,-500.0,0.000209,2]
[330530751,1719558772174,-500.0,0.000209,2]
[330530752,1719558772183,-500.0,0.000209,2]
[330530753,1719558772196,-500.0,0.000209,2]
[330530754,1719558772205,-500.0,0.000209,2]
[330530755,1719558772216,-500.0,0.000209,2]
[330530756,1719558772226,-500.0,0.000209,2]
[330530757,1719558772235,-500.0,0.000209,2]
[330530758,1719558772244,-500.0,0.000209,2]
[330530759,1719558772253,-500.0,0.000209,2]
[330530760,1719558772262,-500.0,0.000209,2]
[330530761,1719558772271,-500.0,0.000209,2]
[330530762,1719558772280,-500.0,0.000209,2]
[330530763,1719558772290,-500.0,0.000209,2]
[330530764,1719558772299,-500.0,0.000209,2]
[330530765,1719558772308,-500.0,0.000209,2]
[330530766,1719558772317,-500.0,0.000209,2]
[330530767,1719558772326,-500.0,0.000209,2]
[330530768,1719558772335,-500.0,0.000209,2]
[330530769,1719558772344,-500.0,0.000209,2]
[330530770,1719558772354,-500.0,0.000209,2]
[330530771,1719558772363,-500.0,0.000209,2]
[330530772,1719558772372,-500.0,0.000209,2]
[330530773,1719558772382,-500.0,0.000209,2]
[330530774,1719558772391,-500.0,0.000209,2]
[330530775,1719558772400,-500.0,0.000209,2]
[330530776,1719558772409,-500.0,0.000209,2]
[330530777,1719558772417,-500.0,0.000209,2]
[330530778,1719558772427,-500.0,0.000209,2]
[330530779,1719558772437,-500.0,0.000209,2]
[330530780,1719558772445,-500.0,0.000209,2]
[330530781,1719558772455,-500.0,0.000209,2]
[330530782,1719558772466,-500.0,0.000209,2]
[330530783,1719558772475,-500.0,0.000209,2]
[330530784,1719558772488,-500.0,0.000209,2]
[330530785,1719558772497,-500.0,0.000209,2]
[330530786,1719558772506,-500.0,0.000209,2]
[330530787,1719558772515,-500.0,0.000209,2]
[330530788,1719558772524,-500.0,0.000209,2]
[330530789,1719558772533,-500.0,0.000209,2]
[330530790,1719558772542,-500.0,0.000209,2]
[330530791,1719558772551,-500.0,0.000209,2]
[330530792,1719558772560,-500.0,0.000209,2]
[330530793,1719558772570,-500.0,0.000209,2]
[330530794,1719558772579,-500.0,0.000209,2]
[330530795,1719558772588,-500.0,0.000209,2]
[330530796,1719558772598,-500.0,0.000209,2]
[330530797,1719558772609,-500.0,0.000209,2]
[330530798,1719558772618,-500.0,0.000209,2]
[330530799,1719558772627,-500.0,0.000209,2]
[330530800,1719558772638,-500.0,0.000209,2]
[330530801,1719558772647,-500.0,0.000209,2]
[330530802,1719558772658,-500.0,0.000209,2]
[330530803,1719558772668,-500.0,0.000209,2]
[330530804,1719558772679,-500.0,0.000209,2]
[330530805,1719558772688,-500.0,0.000209,2]
[330530806,1719558772698,-500.0,0.000209,2]
[330530807,1719558772706,-500.0,0.000209,2]
[330530808,1719558772717,-500.0,0.000209,2]
[330530809,1719558772727,-500.0,0.000209,2]
[330530810,1719558772736,-285.27,0.000209,2]
[330530811,1719558772745,-500.0,0.000209,2]
[330530812,1719558772754,-500.0,0.000209,2]
[330530813,1719558772763,-500.0,0.000209,2]
[330530814,1719558772773,-500.0,0.000209,2]
[330530815,1719558772783,-500.0,0.000209,2]
[330530816,1719558772792,-500.0,0.000209,2]
[330530817,1719558772801,-500.0,0.000209,2]
[330530818,1719558772811,-500.0,0.000209,2]
[330530819,1719558772820,-500.0,0.000209,2]
[330530820,1719558772830,-500.0,0.000209,2]
[330530821,1719558772839,-500.0,0.000209,2]
[330530822,1719558772848,-500.0,0.000209,2]
[330530823,1719558772858,-500.0,0.000209,2]
[330530824,1719558772869,-500.0,0.000209,2]
[330530825,1719558772879,-500.0,0.000209,2]
[330530826,1719558772888,-500.0,0.000209,2]
[330530827,1719558772897,-326.22,0.000209,2]
[330530828,1719558772907,-151.0,0.00020908,2]
[330530829,1719558772915,-1411.0,0.00021,2]
[330530830,1719558772924,-1000.0,0.00021,4]
[330530831,1719558772935,-305.62686955,0.00021,2]
[330530832,1719558772944,-850.0,0.00021,2]
[330530833,1719558772956,-500.61,0.00021,2]
[330530834,1719558772965,-500.0,0.00021,4]
[330530835,1719558772974,-250000.0,0.00021,2]
[330530836,1719558772984,-777.73590397,0.00021,2]
[330530837,1719558772995,-1250.0,0.00021,2]
[330530838,1719558773004,-202.878597,0.00021,2]
[330530839,1719558773013,-152.0,0.00021055,5]
[330530840,1719558773022,-16980.95848913,0.0002107,2]
[330530841,1719558773032,-278.98953146,0.00021072,2]
[330530842,1719558773041,-500.0,0.00021095,2]
[330530843,1719558773050,-500.0,0.00021095,2]
[330530844,1719558773059,-500.0,0.00021095,2]
[330530845,1719558773068,-500.0,0.00021095,2]
[330530846,1719558773077,-500.0,0.00021095,2]
[330530847,1719558773086,-500.0,0.00021095,2]
[330530848,1719558773095,-500.0,0.00021095,2]
[330530849,1719558773104,-500.0,0.00021095,2]
[330530850,1719558773117,-443.1869989,0.00021095,2]
[330530851,1719558773127,-371.01532115,0.00021095,2]
[330530852,1719558773136,-317.19915741,0.00021095,2]
[330530853,1719558773145,-500.0,0.00021095,2]
[330530854,1719558773156,-500.0,0.00021095,2]
[330530855,1719558773167,-587.07834311,0.00021095,2]
[330530856,1719558773176,-500.0,0.00021095,2]
[330530857,1719558773187,-500.0,0.00021095,2]
[330530858,1719558773196,-500.0,0.00021095,2]
[330530859,1719558773206,-500.0,0.00021095,2]
[330530860,1719558773216,-500.0,0.00021095,2]
[330530861,1719558773225,-500.0,0.00021095,2]
[330530862,1719558773235,-500.0,0.00021095,2]
[330530863,1719558773245,-500.0,0.00021095,2]
[330530864,1719558773256,-574.95302381,0.00021095,2]
[330530865,1719558773266,-500.0,0.00021095,2]
[330530866,1719558773277,-500.0,0.00021095,2]
[330530867,1719558773287,-500.0,0.00021095,2]
[330530868,1719558773295,-500.0,0.00021095,2]
[330530869,1719558773305,-500.0,0.00021095,2]
[330530870,1719558773314,-500.0,0.00021095,2]
[330530871,1719558773324,-500.0,0.00021095,2]
[330530872,1719558773336,-353.2418788,0.00021095,2]
[330530873,1719558773346,-500.0,0.00021095,2]
[330530874,1719558773355,-500.0,0.00021095,2]
[330530875,1719558773365,-500.0,0.00021095,2]
[330530876,1719558773375,-500.0,0.00021095,2]
[330530877,1719558773387,-886.86,0.00021095,2]
[330530878,1719558773399,-500.0,0.00021095,2]
[330530879,1719558773409,-500.0,0.00021095,2]
[330530880,1719558773418,-500.0,0.00021095,2]
[330530881,1719558773427,-1151.71,0.00021095,2]
[330530882,1719558773436,-500.0,0.00021095,2]
[330530883,1719558773447,-500.0,0.00021095,2]
[330530884,1719558773457,-682.81,0.00021095,2]
[330530885,1719558773466,-2974.6,0.00021095,2]
[330530886,1719558773475,-500.0,0.00021095,2]
[330530887,1719558773485,-500.0,0.00021095,2]
[330530888,1719558773494,-520.52671133,0.00021095,2]
[330530889,1719558773503,-520.33,0.00021095,2]
[330530890,1719558773513,-1852.46,0.00021095,2]
[330530891,1719558773522,-500.0,0.00021095,2]
[330530892,1719558773531,-500.0,0.00021095,2]
[330530893,1719558773541,-500.0,0.00021095,2]
[330530894,1719558773551,-1092.66,0.00021095,2]
[330530895,1719558773559,-500.0,0.00021095,2]
[330530896,1719558773570,-743.82,0.00021095,2]
[330530897,1719558773579,-860.26,0.00021095,2]
[330530898,1719558773588,-500.0,0.00021095,2]
[330530899,1719558773598,-500.0,0.00021095,2]
[330530900,1719558773607,-608.72,0.00021095,2]
[330530901,1719558773616,-734.57,0.00021095,2]
[330530902,1719558773625,-888.31,0.00021095,2]
[330530903,1719558773634,-500.0,0.00021095,2]
[330530904,1719558773643,-560.78,0.00021095,2]
[330530905,1719558773651,-1659.7,0.00021095,2]
[330530906,1719558773660,-2806.65,0.00021095,2]
[330530907,1719558773669,-2305.03,0.00021095,2]
[330530908,1719558773678,-500.0,0.00021095,2]
[330530909,1719558773688,-500.0,0.00021095,2]
[330530910,1719558773697,-1208.84,0.00021095,2]
[330530911,1719558773707,-1136.16,0.00021095,2]
[330530912,1719558773717,-737.0,0.00021095,2]
[330530913,1719558773726,-500.0,0.00021095,2]
[330530914,1719558773735,-500.0,0.00021095,2]
[330530915,1719558773743,-500.0,0.00021095,2]
[330530916,1719558773752,-2150.69,0.00021095,2]
[330530917,1719558773762,-500.0,0.00021095,2]
[330530918,1719558773771,-500.0,0.00021095,2]
[330530919,1719558773780,-500.0,0.00021095,2]
[330530920,1719558773790,-500.0,0.00021095,2]
[330530921,1719558773800,-1100.75,0.00021095,2]
[330530922,1719558773810,-2202.97,0.00021095,2]
[330530923,1719558773820,-532.95,0.00021095,2]
[330530924,1719558773830,-928.31,0.00021095,2]
[330530925,1719558773840,-528.55,0.00021095,2]
[330530926,1719558773849,-500.0,0.00021095,2]
[330530927,1719558773859,-717.58,0.00021095,2]
[330530928,1719558773869,-500.0,0.00021095,2]
[330530929,1719558773879,-500.0,0.00021095,2]
[330530930,1719558773890,-973.5,0.00021095,2]
[330530931,1719558773899,-1662.73,0.00021095,2]
[330530932,1719558773909,-500.0,0.00021095,2]
[330530933,1719558773918,-500.0,0.00021095,2]
[330530934,1719558773928,-500.0,0.00021095,2]
[330530935,1719558773939,-500.0,0.00021095,2]
[330530936,1719558773950,-544.83,0.00021095,2]
[330530937,1719558773960,-1021.32,0.00021095,2]
[330530938,1719558773969,-803.25,0.00021095,2]
[330530939,1719558773979,-500.0,0.00021095,2]
[330530940,1719558773988,-500.0,0.00021095,2]
[330530941,1719558773997,-373.95481644,0.00021095,2]
[330530942,1719558774007,-500.0,0.00021095,2]
[330530943,1719558774016,-500.0,0.00021095,2]
[330530944,1719558774025,-933.12,0.00021095,2]
[330530945,1719558774033,-1198.98,0.00021095,2]
[330530946,1719558774042,-671.66,0.00021095,2]
[330530947,1719558774052,-1546.54,0.00021095,2]
[330530948,1719558774061,-500.0,0.00021095,2]
[330530949,1719558774070,-500.0,0.00021095,2]
[330530950,1719558774080,-853.88,0.00021095,2]
[330530951,1719558774089,-1991.97,0.00021095,2]
[330530952,1719558774098,-500.0,0.00021095,2]
[330530953,1719558774108,-500.0,0.00021095,2]
[330530954,1719558774123,-500.0,0.00021095,2]
[330530955,1719558774133,-878.16,0.00021095,2]
[330530956,1719558774143,-500.0,0.00021095,2]
[330530957,1719558774152,-1108.4,0.00021095,2]
[330530958,1719558774164,-1797.61,0.00021095,2]
[330530959,1719558774173,-830.15,0.00021095,2]
[330530960,1719558774183,-500.0,0.00021095,2]
[330530961,1719558774193,-692.09,0.00021095,2]
[330530962,1719558774202,-1458.9,0.00021095,2]
[330530963,1719558774214,-500.0,0.00021095,2]
[330530964,1719558774224,-857.9,0.00021095,2]
[330530965,1719558774233,-565.29,0.00021095,2]
[330530966,1719558774243,-500.0,0.00021095,2]
[330530967,1719558774252,-804.11,0.00021095,2]
[330530968,1719558774261,-500.0,0.00021095,2]
[330530969,1719558774272,-500.0,0.00021095,2]